bitfinex-derivatives/quotes_SOLF0:USTF0_20260314
["timestamp","ask_amount","ask_price","bid_price","bid_amount"]
[1773517251013,9.27365272,86.99,86.952,4.44527895]
[1773517251312,9.27365272,86.989,86.952,4.44527895]
[1773517251611,9.27365272,86.988,86.952,4.44527895]
[1773517251813,9.27365272,86.987,86.952,4.44527895]
[1773517252012,10.344,86.992,86.952,4.44527895]
[1773517252013,9.27365272,86.986,86.952,4.44527895]
[1773517252213,10.344,86.992,86.952,4.44527895]
[1773517252415,9.27354153,86.991,86.952,4.44527895]
[1773517252614,9.27354153,86.99,86.952,4.44527895]
[1773517252810,9.27354153,86.989,86.952,4.44527895]
[1773517253111,9.27354153,86.988,86.952,4.44527895]
[1773517253311,9.27354153,86.987,86.952,4.44527895]
[1773517253511,9.27354153,86.986,86.952,4.44527895]
[1773517253708,10.344,86.992,86.952,4.44527895]
[1773517254015,9.27350205,86.991,86.952,4.44527895]
[1773517254213,9.27350205,86.99,86.952,4.44527895]
[1773517254513,9.27350205,86.989,86.952,4.44527895]
[1773517254714,9.27350205,86.988,86.952,4.44527895]
[1773517255008,9.27350205,86.987,86.952,4.44527895]
[1773517255212,10.344,86.992,86.952,4.44527895]
[1773517255415,9.25829975,86.991,86.952,4.44527895]
[1773517255611,9.25829975,86.99,86.952,4.44527895]
[1773517255812,9.25829975,86.989,86.952,4.44527895]
[1773517256015,9.25829975,86.988,86.952,4.44527895]
[1773517256210,9.25829975,86.987,86.952,4.44527895]
[1773517256417,10.344,86.992,86.952,4.44527895]
[1773517256717,9.25824656,86.991,86.952,4.44527895]
[1773517256917,9.25824656,86.99,86.952,4.44527895]
[1773517257116,9.25824656,86.989,86.952,4.44527895]
[1773517257318,9.25824656,86.988,86.952,4.44527895]
[1773517257617,9.25824656,86.987,86.952,4.44527895]
[1773517257818,10.344,86.992,86.952,4.44527895]
[1773517258018,9.25823068,86.991,86.952,4.44527895]
[1773517258217,9.25823068,86.99,86.952,4.44527895]
[1773517258418,9.25823068,86.989,86.952,4.44527895]
[1773517258718,9.25823068,86.988,86.952,4.44527895]
[1773517258917,9.25823068,86.987,86.952,4.44527895]
[1773517259113,10.344,86.992,86.952,4.44527895]
[1773517259318,9.25821078,86.991,86.952,4.44527895]
[1773517259519,9.25821078,86.99,86.952,4.44527895]
[1773517259718,9.25821078,86.989,86.952,4.44527895]
[1773517259921,9.25821078,86.988,86.952,4.44527895]
[1773517260219,9.25821078,86.987,86.952,4.44527895]
[1773517260521,10.344,86.992,86.952,4.44527895]
[1773517260717,9.25820207,86.991,86.952,4.44527895]
[1773517260917,9.25820207,86.99,86.952,4.44527895]
[1773517261115,9.25820207,86.989,86.952,4.44527895]
[1773517261322,10.344,86.992,86.952,4.44527895]
[1773517261323,9.25820207,86.988,86.952,4.44527895]
[1773517261522,9.25820207,86.987,86.952,4.44527895]
[1773517261722,10.344,86.992,86.952,4.44527895]
[1773517261924,9.25834821,86.991,86.952,4.44527895]
[1773517262134,10.344,86.989,86.952,4.44527895]
[1773517262320,18.62463241,86.988,86.94,4.5865196]
[1773517262622,9.25834821,86.987,86.94,4.5865196]
[1773517262826,9.25834821,86.986,86.94,4.5865196]
[1773517263022,9.25834821,86.985,86.94,4.5865196]
[1773517263222,9.25834821,86.984,86.94,4.5865196]
[1773517263418,9.25834821,86.983,86.94,4.5865196]
[1773517263725,9.25834821,86.982,86.94,4.5865196]
[1773517263925,10.345,86.983,86.94,4.5865196]
[1773517264120,9.25586381,86.982,86.94,4.5865196]
[1773517264315,10.345,86.983,86.94,4.5865196]
[1773517264521,9.25494435,86.982,86.94,4.5865196]
[1773517264721,10.345,86.983,86.94,4.5865196]
[1773517264921,9.25494435,86.982,86.94,4.5865196]
[1773517265126,10.345,86.983,86.94,4.5865196]
[1773517265322,9.25424626,86.982,86.94,4.5865196]
[1773517265628,10.345,86.983,86.94,4.5865196]
[1773517265822,9.25408843,86.982,86.94,4.5865196]
[1773517266027,10.345,86.983,86.94,4.5865196]
[1773517266230,10.345,86.983,86.941,4.58861115]
[1773517267520,35.76421676,87.071,86.926,280.07348344]
[1773517267521,3.12226924,87.02,86.975,4.58855586]
[1773517267727,18.60423335,87.019,86.975,4.58855586]
[1773517267924,18.60423335,87.018,86.975,4.58855586]
[1773517268119,18.60423335,87.017,86.975,4.58855586]
[1773517268317,18.60423335,87.016,86.975,4.58855586]
[1773517268523,10.341,87.012,86.975,4.58855586]
[1773517268720,9.25601434,87.011,86.975,4.58855586]
[1773517268920,9.25601434,87.01,86.975,4.58855586]
[1773517269125,9.25601434,87.009,86.975,4.58855586]
[1773517269326,10.341,87.012,86.975,4.58855586]
[1773517269526,9.2479808,87.011,86.975,4.58855586]
[1773517269719,9.2479808,87.01,86.975,4.58855586]
[1773517269920,9.2479808,87.009,86.975,4.58855586]
[1773517270119,10.341,87.012,86.975,4.58855586]
[1773517270324,9.2455719,87.011,86.975,4.58855586]
[1773517270525,9.2455719,87.01,86.975,4.58855586]
[1773517270729,10.341,87.012,86.975,4.58855586]
[1773517270930,9.24572259,87.011,86.975,4.58855586]
[1773517271130,10.341,87.012,86.975,4.58855586]
[1773517271331,9.24373739,87.011,86.975,4.58855586]
[1773517271530,10.341,87.012,86.975,4.58855586]
[1773517271732,9.2435827,87.011,86.975,4.58855586]
[1773517271928,10.341,87.012,86.975,4.58855586]
[1773517309059,9.26370505,87.011,86.975,4.58855586]
[1773517309256,9.26370505,87.01,86.975,4.58855586]
[1773517309459,10.341,87.012,86.975,4.58855586]
[1773517309657,9.26630178,87.011,86.975,4.58855586]
[1773517309857,9.26630178,87.01,86.975,4.58855586]
[1773517310058,10.341,87.012,86.975,4.58855586]
[1773517310360,9.26950599,87.011,86.975,4.58855586]
[1773517310659,9.26950599,87.01,86.975,4.58855586]
[1773517310858,9.26950599,87.009,86.975,4.58855586]
[1773517311062,10.341,87.012,86.975,4.58855586]
[1773517311359,9.27384465,87.011,86.975,4.58855586]
[1773517311558,9.27384465,87.01,86.975,4.58855586]
[1773517311759,9.27384465,87.009,86.975,4.58855586]
[1773517311956,10.341,87.012,86.975,4.58855586]
[1773517311957,9.27384465,87.008,86.975,4.58855586]
[1773517312161,9.27384465,87.007,86.975,4.58855586]
[1773517312361,9.27384465,87.006,86.975,4.58855586]
[1773517312562,9.27384465,87.005,86.975,4.58855586]
[1773517312762,9.27384465,87.004,86.975,4.58855586]
[1773517313063,9.27384465,87.003,86.975,4.58855586]
[1773517313258,10.341,87.012,86.975,4.58855586]
[1773517313562,18.62531433,87.011,86.975,4.58855586]
[1773517313761,10.341,87.012,86.975,4.58855586]
[1773517313762,9.28464287,87.01,86.975,4.58855586]
[1773517313963,9.28464287,87.009,86.975,4.58855586]
[1773517314158,9.28464287,87.008,86.975,4.58855586]
[1773517314359,9.28464287,87.007,86.975,4.58855586]
[1773517314560,9.28464287,87.006,86.975,4.58855586]
[1773517314762,9.28464287,87.005,86.975,4.58855586]
[1773517314957,9.28464287,87.004,86.977,10.346]
[1773517315155,9.28464287,87.003,86.975,4.58855586]
[1773517315356,3.12056226,87.02,86.977,10.345]
[1773517315555,18.61741531,87.019,86.977,10.345]
[1773517315766,18.61741531,87.018,86.975,4.58855586]
[1773517315960,18.61741531,87.017,86.975,4.58855586]
[1773517316264,18.61741531,87.016,86.975,4.58855586]
[1773517316464,18.61741531,87.015,86.975,4.58855586]
[1773517316665,18.61741531,87.014,86.976,10.346]
[1773517316859,18.61741531,87.013,86.976,15.11964812]
[1773517317059,18.61741531,87.012,86.976,15.11964812]
[1773517317260,18.61741531,87.011,86.976,4.77364812]
[1773517317455,9.2767371,87.01,86.976,4.77364812]
[1773517317663,9.2767371,87.009,86.976,4.77364812]
[1773517317862,9.2767371,87.008,86.976,4.77364812]
[1773517318061,9.2767371,87.007,86.976,4.77364812]
[1773517318262,9.2767371,87.006,86.976,4.77364812]
[1773517318468,9.2767371,87.005,86.976,4.77364812]
[1773517318765,9.2767371,87.004,86.976,4.77364812]
[1773517318969,9.2767371,87.003,86.976,4.77364812]
[1773517319265,3.12056226,87.02,86.976,4.77364812]
[1773517319467,18.61734817,87.019,86.976,4.77364812]
[1773517319657,18.61734817,87.018,86.976,4.77364812]
[1773517319862,18.61734817,87.017,86.976,4.77364812]
[1773517320062,18.61734817,87.016,86.976,4.77364812]
[1773517320262,18.61734817,87.015,86.976,4.77364812]
[1773517320563,18.61734817,87.014,86.976,4.77364812]
[1773517320763,18.61734817,87.013,86.976,4.77364812]
[1773517321060,18.61734817,87.012,86.976,4.77364812]
[1773517321263,18.61734817,87.011,86.976,4.77364812]
[1773517321564,9.2767027,87.01,86.976,4.77364812]
[1773517321762,9.2767027,87.009,86.976,4.77364812]
[1773517322068,9.2767027,87.008,86.976,4.77364812]
[1773517322367,9.2767027,87.007,86.976,4.77364812]
[1773517322667,9.2767027,87.006,86.976,4.77364812]
[1773517322968,9.2767027,87.005,86.976,4.77364812]
[1773517323169,9.2767027,87.004,86.976,4.77364812]
[1773517323368,9.2767027,87.003,86.976,4.77364812]
[1773517323570,3.12056226,87.02,86.976,4.77364812]
[1773517323773,18.61736042,87.019,86.976,4.77364812]
[1773517323970,18.61736042,87.018,86.976,4.77364812]
[1773517324172,18.61736042,87.017,86.976,4.77364812]
[1773517324364,18.61736042,87.016,86.976,4.77364812]
[1773517324567,18.61736042,87.015,86.976,4.77364812]
[1773517324768,18.61736042,87.014,86.976,4.77364812]
[1773517325063,18.61736042,87.013,86.976,4.77364812]
[1773517325267,18.61736042,87.012,86.976,4.77364812]
[1773517325467,18.61736042,87.011,86.976,4.77364812]
[1773517325671,9.27670439,87.01,86.976,4.77364812]
[1773517325870,9.27670439,87.009,86.976,4.77364812]
[1773517326163,9.27670439,87.008,86.976,4.77364812]
[1773517326372,9.27670439,87.007,86.976,4.77364812]
[1773517326575,9.27670439,87.006,86.976,4.77364812]
[1773517326774,9.27670439,87.005,86.976,4.77364812]
[1773517327074,3.12056226,87.02,86.976,4.77364812]
[1773517327374,18.71590523,87.019,86.976,4.77364812]
[1773517327575,18.71590523,87.018,86.976,4.77364812]
[1773517327774,18.71590523,87.017,86.976,4.77364812]
[1773517327975,18.71590523,87.016,86.976,4.77364812]
[1773517328272,18.71590523,87.015,86.976,4.77364812]
[1773517328468,18.71590523,87.014,86.976,4.77364812]
[1773517328668,9.27512065,87.013,86.976,4.77364812]
[1773517328975,3.12056226,87.03,86.981,4.81292866]
[1773517328976,40.68,87.03,86.981,4.81292866]
[1773517329274,18.71051992,87.029,86.981,4.81292866]
[1773517329475,18.71051992,87.028,86.981,4.81292866]
[1773517329773,9.27326312,87.027,86.994,10.343]
[1773517329973,9.27326312,87.026,86.994,10.343]
[1773517330174,9.27326312,87.025,86.994,10.343]
[1773517330374,9.27326312,87.024,86.994,10.343]
[1773517330573,9.27326312,87.023,86.994,10.343]
[1773517330775,40.68,87.03,86.994,10.343]
[1773517330976,18.69300072,87.029,86.994,10.343]
[1773517331176,9.26462749,87.028,86.994,10.343]
[1773517331376,9.26462749,87.027,86.994,10.343]
[1773517331575,9.26462749,87.026,86.994,10.343]
[1773517331777,9.26462749,87.025,86.994,10.343]
[1773517332077,9.26462749,87.024,86.994,10.343]
[1773517332276,40.68,87.03,86.994,10.343]
[1773517332480,9.26076134,87.029,86.994,10.343]
[1773517332668,9.26076134,87.028,86.994,10.343]
[1773517332868,9.26076134,87.027,86.994,10.343]
[1773517333072,9.26076134,87.026,86.994,10.343]
[1773517333274,9.26076134,87.025,86.994,10.343]
[1773517333577,40.68,87.03,86.994,15.14484798]
[1773517333778,9.25929108,87.029,86.995,4.80184798]
[1773517333977,9.25929108,87.028,86.995,4.80184798]
[1773517334178,9.25929108,87.027,86.995,4.80184798]
[1773517334478,40.68,87.03,86.995,4.80184798]
[1773517334479,9.25929108,87.026,86.995,4.80184798]
[1773517334777,40.68,87.03,86.995,4.80184798]
[1773517335080,40.72,87.066,87.011,4.80252391]
[1773517335278,9.2456931,87.065,87.011,4.80252391]
[1773517335482,9.2456931,87.064,87.011,4.80252391]
[1773517335676,40.72,87.066,87.011,4.80252391]
[1773517335880,40.72,87.066,87.021,4.80252391]
[1773517337786,40.78,87.065,87.021,4.80252391]
[1773517339584,40.78,87.065,87.023,4.76507148]
[1773517341988,3.11902311,87.06,87.023,4.76507148]
[1773517342189,3.11902311,87.06,87.001,4.77866556]
[1773517343590,10.336,87.059,87.005,4.77063443]
[1773517347492,10.336,87.059,87.01,3.11902311]
[1773517347690,10.336,87.059,87.011,4.76802026]
[1773517360912,10.336,87.059,87.012,4.77331853]
[1773517373119,9.2264485,87.058,87.012,4.77331853]
[1773517373310,9.2264485,87.057,87.012,4.77331853]
[1773517373514,10.336,87.059,87.012,4.77331853]
[1773517373715,9.2264485,87.058,87.012,4.77331853]
[1773517374016,9.2264485,87.057,87.012,4.77331853]
[1773517374214,9.22769319,87.056,87.012,4.77331853]
[1773517374417,10.336,87.059,87.012,4.77331853]
[1773517374619,9.22769319,87.058,87.012,4.77331853]
[1773517374819,9.22769319,87.057,87.012,4.77331853]
[1773517375022,9.22769319,87.056,87.012,4.77331853]
[1773517375219,9.23013823,87.055,87.012,4.77331853]
[1773517375419,10.336,87.059,87.012,4.77331853]
[1773517375620,9.23013823,87.058,87.012,4.77331853]
[1773517375918,9.23013823,87.057,87.012,4.77331853]
[1773517376218,9.23013823,87.056,87.012,4.77331853]
[1773517376419,9.23013823,87.055,87.012,4.77331853]
[1773517376624,9.23013823,87.054,87.012,4.77331853]
[1773517376815,10.336,87.059,87.012,4.77331853]
[1773517377016,9.23300445,87.058,87.012,4.77331853]
[1773517377216,10.336,87.059,87.012,4.77331853]
[1773517377217,9.23300445,87.057,87.012,4.77331853]
[1773517377521,10.336,87.059,87.012,4.77331853]
[1773517377522,9.23300445,87.056,87.012,4.77331853]
[1773517377715,9.23300445,87.055,87.012,4.77331853]
[1773517377916,9.23300445,87.054,87.012,4.77331853]
[1773517378116,9.23300445,87.053,87.012,4.77331853]
[1773517378314,9.23300445,87.052,87.012,4.77331853]
[1773517378518,9.23300445,87.051,87.012,4.77331853]
[1773517378719,10.336,87.059,87.012,4.77331853]
[1773517379022,18.73187947,87.058,87.012,4.77331853]
[1773517379222,18.73187947,87.057,87.012,4.77331853]
[1773517379423,18.73187947,87.056,87.012,4.77331853]
[1773517379623,18.73187947,87.055,87.012,4.77331853]
[1773517379924,18.73187947,87.054,87.012,4.77331853]
[1773517380118,18.73187947,87.053,87.012,4.77331853]
[1773517380318,9.24078128,87.052,87.012,4.77331853]
[1773517380517,9.24078128,87.051,87.012,4.77331853]
[1773517380715,9.24078128,87.05,87.012,4.77331853]
[1773517380922,9.24078128,87.049,87.012,4.77331853]
[1773517381124,9.24078128,87.048,87.012,4.77331853]
[1773517381325,10.336,87.059,87.012,4.77331853]
[1773517381625,18.74636273,87.058,87.012,4.77331853]
[1773517381824,18.74636273,87.057,87.012,4.77331853]
[1773517382129,18.74636273,87.056,87.012,4.77331853]
[1773517382325,18.74636273,87.055,87.012,4.77331853]
[1773517382520,18.74636273,87.054,87.012,4.77331853]
[1773517382718,18.74636273,87.053,87.012,4.77331853]
[1773517382918,18.74636273,87.052,87.012,4.77331853]
[1773517383117,9.24798139,87.051,87.012,4.77331853]
[1773517383324,9.24798139,87.05,87.012,4.77331853]
[1773517383526,9.24798139,87.049,87.012,4.77331853]
[1773517383827,9.24798139,87.048,87.012,4.77331853]
[1773517384028,9.24798139,87.047,87.012,4.77331853]
[1773517384228,10.336,87.059,87.012,4.77331853]
[1773517384525,18.75223263,87.058,87.012,4.77331853]
[1773517384729,18.75223263,87.057,87.012,4.77331853]
[1773517385029,18.75223263,87.056,87.012,4.77331853]
[1773517385229,18.75223263,87.055,87.012,4.77331853]
[1773517385432,18.75223263,87.054,87.012,4.77331853]
[1773517385728,18.75223263,87.053,87.012,4.77331853]
[1773517386033,18.75223263,87.052,87.012,4.77331853]
[1773517386232,18.75223263,87.051,87.012,4.77331853]
[1773517386532,9.25093511,87.05,87.012,4.77331853]
[1773517386733,9.25093511,87.049,87.012,4.77331853]
[1773517386927,9.25093511,87.048,87.012,4.77331853]
[1773517387132,9.25093511,87.047,87.012,4.77331853]
[1773517387330,9.25093511,87.046,87.012,4.77331853]
[1773517387530,10.336,87.059,87.012,4.77331853]
[1773517387730,18.73537196,87.058,87.012,4.77331853]
[1773517387931,18.73537196,87.057,87.012,4.77331853]
[1773517388131,18.73537196,87.056,87.012,4.77331853]
[1773517388332,18.73537196,87.055,87.012,4.77331853]
[1773517388532,18.73537196,87.054,87.012,4.77331853]
[1773517388831,18.73537196,87.053,87.012,4.77331853]
[1773517389032,18.73537196,87.052,87.012,4.77331853]
[1773517389333,9.25541273,87.051,87.012,4.77331853]
[1773517389534,9.25541273,87.05,87.012,4.77331853]
[1773517389733,9.25541273,87.049,87.012,4.77331853]
[1773517389934,10.336,87.059,87.012,4.77331853]
[1773517390135,18.73485119,87.058,87.012,4.77331853]
[1773517390330,18.73485119,87.057,87.012,4.77331853]
[1773517390536,18.73485119,87.056,87.012,4.77331853]
[1773517390736,18.73485119,87.055,87.012,4.77331853]
[1773517390936,18.73485119,87.054,87.012,4.77331853]
[1773517391136,18.73485119,87.053,87.012,4.77331853]
[1773517391337,18.73485119,87.052,87.012,4.77331853]
[1773517391637,9.25516015,87.051,87.012,4.77331853]
[1773517391938,9.25516015,87.05,87.012,4.77331853]
[1773517392139,9.25516015,87.049,87.012,4.77331853]
[1773517392440,10.336,87.059,87.012,4.77331853]
[1773517392638,18.73022444,87.058,87.012,4.77331853]
[1773517392840,18.73022444,87.057,87.012,4.77331853]
[1773517393040,18.73022444,87.056,87.012,4.77331853]
[1773517393341,18.73022444,87.055,87.012,4.77331853]
[1773517393638,18.73022444,87.054,87.012,4.77331853]
[1773517393834,18.73022444,87.053,87.012,4.77331853]
[1773517394039,18.73022444,87.052,87.012,4.77331853]
[1773517394240,9.25287277,87.051,87.012,4.77331853]
[1773517394439,9.25287277,87.05,87.012,4.77331853]
[1773517394739,9.25287277,87.049,87.012,4.77331853]
[1773517394942,10.336,87.059,87.012,4.77331853]
[1773517395139,18.73405282,87.058,87.012,4.77331853]
[1773517395341,18.73405282,87.057,87.012,4.77331853]
[1773517395535,18.73405282,87.056,87.012,4.77331853]
[1773517395740,18.73405282,87.055,87.012,4.77331853]
[1773517396037,18.73405282,87.054,87.012,4.77331853]
[1773517396234,18.73405282,87.053,87.012,4.77331853]
[1773517396542,18.73405282,87.052,87.012,4.77331853]
[1773517396743,9.25476299,87.051,87.012,4.77331853]
[1773517396942,9.25476299,87.05,87.012,4.77331853]
[1773517397242,9.25476299,87.049,87.012,4.77331853]
[1773517397444,10.336,87.059,87.012,4.77331853]
[1773517397644,18.73384471,87.058,87.012,4.77331853]
[1773517397943,18.73384471,87.057,87.012,4.77331853]
[1773517398143,18.73384471,87.056,87.012,4.77331853]
[1773517398346,18.73384471,87.055,87.012,4.77331853]
[1773517398644,18.73384471,87.054,87.012,4.77331853]
[1773517398845,18.73384471,87.053,87.012,4.77331853]
[1773517399047,18.73384471,87.052,87.012,4.77331853]
[1773517399239,9.25465968,87.051,87.012,4.77331853]
[1773517399544,9.25465968,87.05,87.012,4.77331853]
[1773517399743,9.25465968,87.049,87.012,4.77331853]
[1773517399946,9.25465968,87.048,87.012,4.77331853]
[1773517400246,9.25465968,87.047,87.012,4.77331853]
[1773517400448,10.336,87.059,87.012,4.77331853]
[1773517400645,18.73368102,87.058,87.012,4.77331853]
[1773517400846,18.73368102,87.057,87.012,4.77331853]
[1773517401042,18.73368102,87.056,87.012,4.77331853]
[1773517401244,18.73368102,87.055,87.012,4.77331853]
[1773517401444,18.73368102,87.054,87.012,4.77331853]
[1773517401647,18.73368102,87.053,87.012,4.77331853]
[1773517401843,18.73368102,87.052,87.012,4.77331853]
[1773517402045,9.25457927,87.051,87.012,4.77331853]
[1773517402246,9.25457927,87.05,87.012,4.77331853]
[1773517402547,9.25457927,87.049,87.003,10.342]
[1773517402749,9.25457927,87.048,87.003,10.342]
[1773517403049,9.25457927,87.047,87.003,15.1241951]
[1773517403250,9.25457927,87.046,87.003,15.1241951]
[1773517403446,9.25457927,87.045,87.003,15.1241951]
[1773517403639,10.336,87.059,87.004,4.7821951]
[1773517403843,10.336,87.054,87.004,4.7821951]
[1773517404144,18.73374818,87.053,87.004,4.7821951]
[1773517404449,18.73374818,87.052,87.004,4.7821951]
[1773517404649,18.73374818,87.051,87.004,4.7821951]
[1773517404845,18.73374818,87.05,87.004,4.7821951]
[1773517405041,9.25457841,87.049,87.004,4.7821951]
[1773517405345,9.25457841,87.048,87.004,4.7821951]
[1773517405543,9.25457841,87.047,87.004,4.7821951]
[1773517405839,9.25457841,87.046,87.004,4.7821951]
[1773517406039,9.25457841,87.045,87.004,4.7821951]
[1773517406343,10.336,87.054,87.004,4.7821951]
[1773517406540,18.72539605,87.053,87.004,4.7821951]
[1773517406747,18.72539605,87.052,87.004,4.7821951]
[1773517407046,18.72539605,87.051,87.004,4.7821951]
[1773517407246,18.72539605,87.05,87.004,4.7821951]
[1773517407446,9.24629729,87.049,87.004,4.7821951]
[1773517407749,9.24629729,87.048,87.004,4.7821951]
[1773517407947,9.24629729,87.047,87.004,4.7821951]
[1773517408249,9.24629729,87.046,87.004,4.7821951]
[1773517408449,9.24629729,87.045,87.004,4.7821951]
[1773517408749,10.336,87.054,87.004,4.7821951]
[1773517408944,18.72560452,87.053,87.004,4.7821951]
[1773517409248,18.72560452,87.052,87.004,4.7821951]
[1773517409547,18.72560452,87.051,87.004,4.7821951]
[1773517409748,9.24640295,87.05,87.004,4.7821951]
[1773517409947,9.24640295,87.049,87.004,4.7821951]
[1773517410148,9.24640295,87.048,87.004,4.7821951]
[1773517410348,9.24640295,87.047,87.004,4.7821951]
[1773517410548,9.24640295,87.046,87.004,4.7821951]
[1773517410749,9.24640295,87.045,87.004,4.7821951]
[1773517410949,10.336,87.054,87.004,4.7821951]
[1773517411149,3.11733393,87.05,87.004,4.7821951]
[1773517411349,9.24634324,87.049,87.004,4.7821951]
[1773517411651,9.24634324,87.048,87.004,4.7821951]
[1773517411849,9.24634324,87.047,87.004,4.7821951]
[1773517412048,9.24634324,87.046,87.004,4.7821951]
[1773517412248,9.24629324,87.045,87.004,4.7821951]
[1773517412456,3.11733393,87.05,87.004,4.7821951]
[1773517412751,9.24628151,87.049,87.004,4.7821951]
[1773517412950,9.24628151,87.048,87.004,4.7821951]
[1773517413150,9.24628151,87.047,87.004,4.7821951]
[1773517413350,9.24628151,87.046,87.004,4.7821951]
[1773517413550,9.24628151,87.045,87.004,4.7821951]
[1773517413752,3.11733393,87.05,87.004,4.7821951]
[1773517413950,9.24625209,87.049,87.004,4.7821951]
[1773517414150,9.24625209,87.048,87.004,4.7821951]
[1773517414347,9.24625209,87.047,87.004,4.7821951]
[1773517414654,9.24625209,87.046,87.004,4.7821951]
[1773517414849,9.24625209,87.045,87.004,4.7821951]
[1773517415049,3.11733393,87.05,87.004,4.7821951]
[1773517415248,9.2461965,87.049,87.004,4.7821951]
[1773517415450,9.2461965,87.048,87.004,4.7821951]
[1773517415644,9.2461965,87.047,87.004,4.7821951]
[1773517415850,9.2461965,87.046,87.004,4.7821951]
[1773517416154,9.2461965,87.045,87.004,4.7821951]
[1773517416454,3.11733393,87.05,87.004,4.7821951]
[1773517416754,9.24616997,87.049,87.004,4.7821951]
[1773517416955,9.24616997,87.048,87.004,4.7821951]
[1773517417152,9.24616997,87.047,87.004,4.7821951]
[1773517417357,9.24616997,87.046,87.004,4.7821951]
[1773517417559,9.24616997,87.045,87.004,4.7821951]
[1773517417759,3.11733393,87.05,87.004,4.7821951]
[1773517417959,9.24614423,87.049,87.004,4.7821951]
[1773517418159,9.24614423,87.048,87.004,4.7821951]
[1773517418361,9.24614423,87.047,87.004,4.7821951]
[1773517418558,9.24614423,87.046,87.004,4.7821951]
[1773517418858,3.11733393,87.05,87.004,4.7821951]
[1773517419156,9.24602016,87.049,87.004,4.7821951]
[1773517419359,9.24602016,87.048,87.004,4.7821951]
[1773517419557,9.24602016,87.047,87.004,4.7821951]
[1773517419857,9.24602016,87.046,87.004,4.7821951]
[1773517420063,3.11733393,87.05,87.004,4.7821951]
[1773517420250,9.24602782,87.049,87.004,4.7821951]
[1773517420450,9.24602782,87.048,87.004,4.7821951]
[1773517420655,9.24602782,87.047,87.004,4.7821951]
[1773517420856,9.24602782,87.046,87.004,4.7821951]
[1773517421057,3.11733393,87.05,87.004,4.7821951]
[1773517421256,9.24600465,87.049,87.004,4.7821951]
[1773517421456,9.24600465,87.048,87.004,4.7821951]
[1773517421658,9.24600465,87.047,87.004,4.7821951]
[1773517421860,9.24600465,87.046,87.004,4.7821951]
[1773517422056,3.11733393,87.05,87.004,4.7821951]
[1773517422258,9.2460359,87.049,87.004,4.7821951]
[1773517422461,9.2460359,87.048,87.004,4.7821951]
[1773517422661,9.2460359,87.047,87.004,4.7821951]
[1773517422960,9.2460359,87.046,87.004,4.7821951]
[1773517423163,3.11733393,87.05,87.004,4.7821951]
[1773517423361,9.2460411,87.049,87.004,4.7821951]
[1773517423660,9.2460411,87.048,87.004,4.7821951]
[1773517423860,9.2460411,87.047,87.004,4.7821951]
[1773517424161,9.2460411,87.046,87.004,4.7821951]
[1773517424465,3.11733393,87.05,87.004,4.7821951]
[1773517424652,9.24604645,87.049,87.004,4.7821951]
[1773517424857,9.24604645,87.048,87.004,4.7821951]
[1773517425059,9.24604645,87.047,87.004,4.7821951]
[1773517425261,9.24604645,87.046,87.004,4.7821951]
[1773517425455,3.11733393,87.05,87.004,4.7821951]
[1773517425662,9.24607241,87.049,87.004,4.7821951]
[1773517425862,9.24607241,87.048,87.004,4.7821951]
[1773517426172,9.24607241,87.047,87.004,4.7821951]
[1773517426359,9.24607241,87.046,87.004,4.7821951]
[1773517426559,3.11733393,87.05,87.004,4.7821951]
[1773517426858,9.24605999,87.049,87.004,4.7821951]
[1773517427057,9.24605999,87.048,87.004,4.7821951]
[1773517427254,9.24605999,87.047,87.004,4.7821951]
[1773517427460,9.24605999,87.046,87.004,4.7821951]
[1773517427655,3.11733393,87.05,87.004,4.7821951]
[1773517427861,9.24606704,87.049,87.004,4.7821951]
[1773517428160,9.24606704,87.048,87.004,4.7821951]
[1773517428361,9.24606704,87.047,87.004,4.7821951]
[1773517428562,9.24606704,87.046,87.004,4.7821951]
[1773517428763,9.24606704,87.046,86.968,28.53768209]
[1773517428764,3.11733393,87.03,86.991,4.78773971]
[1773517428964,9.24645934,87.029,86.991,4.78773971]
[1773517429165,3.11733393,87.03,86.991,4.78773971]
[1773517429363,3.11733393,87.02,86.98,4.78779439]
[1773517432561,10.34,87.028,86.98,4.78779439]
[1773517440378,9.40830128,87.043,86.96,4.76558945]
[1773517440568,3.11733393,87.0,86.941,4.76558945]
[1773517441573,14.36354703,87.057,86.94,288.25184705]
[1773517441574,3.11733393,87.02,86.961,4.76325828]
[1773517442576,3.11733393,87.02,86.96,3.11733393]
[1773517442577,10.341,87.017,86.964,4.76999477]
[1773517443679,10.341,87.017,86.966,4.76253073]
[1773517447877,10.341,87.017,86.97,3.11733393]
[1773517448084,10.341,87.017,86.971,4.76208178]
[1773517467295,10.34,87.025,86.977,4.74434841]
[1773517468692,10.34,87.025,86.98,15.0930691]
[1773517471699,10.34,87.025,86.981,4.74951114]
[1773517484314,9.11452073,87.024,86.981,4.74951114]
[1773517484515,10.34,87.025,86.981,4.74951114]